fUSD/lending_fUSD_20241128
["ID","MTS","AMOUNT","RATE_DAILY","PERIOD"]
[343627314,1732761056793,-500.0,9.997e-05,2]
[343627315,1732761056803,-528.0,9.997e-05,2]
[343627316,1732761056812,-500.0,9.997e-05,2]
[343627317,1732761056821,-528.0,9.997e-05,2]
[343627318,1732761056831,-685.34,9.997e-05,2]
[343627319,1732761056839,-685.34,9.997e-05,2]
[343627320,1732761056849,-500.0,9.997e-05,2]
[343627321,1732761056858,-500.0,9.997e-05,2]
[343627322,1732761056867,-500.0,9.997e-05,2]
[343627323,1732761056876,-500.0,9.997e-05,2]
[343627324,1732761056884,-500.0,9.997e-05,2]
[343627325,1732761056893,-500.0,9.997e-05,2]
[343627326,1732761056902,-500.0,9.997e-05,2]
[343627327,1732761056913,-500.0,9.997e-05,2]
[343627328,1732761056922,-631.57242422,9.997e-05,2]
[343627329,1732761056931,-500.0,9.997e-05,2]
[343627330,1732761056940,-500.0,9.997e-05,2]
[343627331,1732761056949,-282.81646872,9.997e-05,2]
[343627332,1732761056958,-925.29,9.997e-05,2]
[343627333,1732761056967,-925.29,9.997e-05,2]
[343627334,1732761056978,-500.0,9.997e-05,2]
[343627335,1732761056987,-172.72,9.997e-05,2]
[343627336,1732761056996,-2726.4,9.997e-05,2]
[343627337,1732761057006,-2726.4,9.997e-05,2]
[343627338,1732761057015,-500.0,9.997e-05,2]
[343627339,1732761057027,-595.69034371,9.997e-05,2]
[343627340,1732761057041,-500.0,9.997e-05,2]
[343627341,1732761057052,-500.0,9.997e-05,2]
[343627342,1732761057061,-500.0,9.997e-05,2]
[343627343,1732761057070,-508.38119868,9.997e-05,2]
[343627344,1732761057080,-500.0,9.997e-05,2]
[343627345,1732761057089,-500.0,9.997e-05,2]
[343627346,1732761057098,-500.0,9.997e-05,2]
[343627347,1732761057108,-500.0,9.997e-05,2]
[343627348,1732761057117,-500.0,9.997e-05,2]
[343627349,1732761057126,-500.0,9.997e-05,2]
[343627350,1732761057137,-500.0,9.997e-05,2]
[343627351,1732761057146,-490.78746427,9.997e-05,2]
[343627352,1732761057156,-377.70588403,9.997e-05,2]
[343627353,1732761057166,-500.0,9.997e-05,2]
[343627354,1732761057176,-500.0,9.997e-05,2]
[343627355,1732761057185,-500.0,9.997e-05,2]
[343627356,1732761057194,-306.93464073,9.997e-05,2]
[343627357,1732761057204,-168.13329709,9.997e-05,2]
[343627358,1732761057214,-500.0,9.997e-05,2]
[343627359,1732761057223,-245.57437517,9.997e-05,2]
[343627360,1732761057232,-500.0,9.997e-05,2]
[343627361,1732761057241,-500.0,9.997e-05,2]
[343627362,1732761057251,-1189.33,9.997e-05,2]
[343627363,1732761057260,-1189.33,9.997e-05,2]
[343627364,1732761057269,-500.0,9.997e-05,2]
[343627365,1732761057278,-500.0,9.997e-05,2]
[343627366,1732761057288,-500.0,9.997e-05,2]
[343627367,1732761057297,-500.0,9.997e-05,2]
[343627368,1732761057306,-828.73,9.997e-05,2]
[343627369,1732761057315,-828.73,9.997e-05,2]
[343627370,1732761057325,-510.38209547,9.997e-05,2]
[343627371,1732761057334,-500.0,9.997e-05,2]
[343627372,1732761057343,-562.72325124,9.997e-05,2]
[343627373,1732761057352,-500.0,9.997e-05,2]
[343627374,1732761057362,-238.43218387,9.997e-05,2]
[343627375,1732761057371,-350.34,9.997e-05,2]
[343627376,1732761057380,-500.0,9.997e-05,2]
[343627377,1732761057390,-500.0,9.997e-05,2]
[343627378,1732761057399,-500.0,9.997e-05,2]
[343627379,1732761057408,-500.0,9.997e-05,2]
[343627380,1732761057418,-500.0,9.997e-05,2]
[343627381,1732761057427,-500.0,9.997e-05,2]
[343627382,1732761057436,-541.16,9.997e-05,2]
[343627383,1732761057446,-541.16,9.997e-05,2]
[343627384,1732761057458,-500.0,9.997e-05,2]
[343627385,1732761057468,-500.0,9.997e-05,2]
[343627386,1732761057477,-1126.65,9.997e-05,2]
[343627387,1732761057486,-1126.65,9.997e-05,2]
[343627388,1732761057496,-500.0,9.997e-05,2]
[343627389,1732761057506,-500.0,9.997e-05,2]
[343627390,1732761057515,-623.16,9.997e-05,2]
[343627391,1732761057527,-500.0,9.997e-05,2]
[343627392,1732761057538,-1564.6,9.997e-05,2]
[343627393,1732761057547,-1564.6,9.997e-05,2]
[343627394,1732761057559,-1396.46,9.997e-05,2]
[343627395,1732761057568,-1396.46,9.997e-05,2]
[343627396,1732761057577,-1029.32,9.997e-05,2]
[343627397,1732761057586,-1029.32,9.997e-05,2]
[343627398,1732761057595,-500.0,9.997e-05,2]
[343627399,1732761057604,-500.0,9.997e-05,2]
[343627400,1732761057615,-500.0,9.997e-05,2]
[343627401,1732761057624,-500.0,9.997e-05,2]
[343627402,1732761057633,-517.19745796,9.997e-05,2]
[343627403,1732761057643,-555.52,9.997e-05,2]
[343627404,1732761057652,-555.52,9.997e-05,2]
[343627405,1732761057661,-500.0,9.997e-05,2]
[343627406,1732761057671,-500.0,9.997e-05,2]
[343627407,1732761057680,-500.0,9.997e-05,2]
[343627408,1732761057689,-500.0,9.997e-05,2]
[343627409,1732761057698,-646.13,9.997e-05,2]
[343627410,1732761057708,-646.13,9.997e-05,2]
[343627411,1732761057717,-500.0,9.997e-05,2]
[343627412,1732761057726,-500.0,9.997e-05,2]
[343627413,1732761057736,-625.69,9.997e-05,2]
[343627414,1732761057746,-625.69,9.997e-05,2]
[343627415,1732761057755,-500.0,9.997e-05,2]
[343627416,1732761057764,-500.0,9.997e-05,2]
[343627417,1732761057773,-586.31,9.997e-05,2]
[343627418,1732761057783,-586.31,9.997e-05,2]
[343627419,1732761057791,-500.0,9.997e-05,2]
[343627420,1732761057800,-500.0,9.997e-05,2]
[343627421,1732761057810,-545.88,9.997e-05,2]
[343627422,1732761057820,-545.88,9.997e-05,2]
[343627423,1732761057830,-500.0,9.997e-05,2]
[343627424,1732761057841,-1346.21,9.997e-05,2]
[343627425,1732761057850,-1346.21,9.997e-05,2]
[343627426,1732761057859,-500.0,9.997e-05,2]
[343627427,1732761057869,-500.0,9.997e-05,2]
[343627428,1732761057878,-500.0,9.997e-05,2]
[343627429,1732761057888,-500.0,9.997e-05,2]
[343627430,1732761057897,-500.0,9.997e-05,2]
[343627431,1732761057907,-500.0,9.997e-05,2]
[343627432,1732761057918,-500.0,9.997e-05,2]
[343627433,1732761057927,-390.8140443,9.997e-05,2]
[343627434,1732761057937,-500.0,9.997e-05,2]
[343627435,1732761057946,-500.0,9.997e-05,2]
[343627436,1732761057956,-500.0,9.997e-05,2]
[343627437,1732761057966,-500.0,9.997e-05,2]
[343627438,1732761057975,-500.0,9.997e-05,2]
[343627439,1732761057985,-500.0,9.997e-05,2]
[343627440,1732761057995,-640.69641175,9.997e-05,2]
[343627441,1732761058004,-1555.35,9.997e-05,2]
[343627442,1732761058014,-157.04245948,9.997e-05,2]
[343627443,1732761058024,-1555.35,9.997e-05,2]
[343627444,1732761058035,-500.0,9.997e-05,2]
[343627445,1732761058044,-500.0,9.997e-05,2]
[343627446,1732761058054,-500.0,9.997e-05,2]
[343627447,1732761058065,-500.0,9.997e-05,2]
[343627448,1732761058074,-500.0,9.997e-05,2]
[343627449,1732761058084,-500.0,9.997e-05,2]
[343627450,1732761058093,-500.0,9.997e-05,2]
[343627451,1732761058103,-500.0,9.997e-05,2]
[343627452,1732761058112,-500.0,9.997e-05,2]
[343627453,1732761058121,-453.23912235,9.997e-05,2]
[343627454,1732761058131,-500.0,9.997e-05,2]
[343627455,1732761058140,-500.0,9.997e-05,2]
[343627456,1732761058150,-689.4,9.997e-05,2]
[343627457,1732761058159,-689.4,9.997e-05,2]
[343627458,1732761058174,-500.0,9.997e-05,2]
[343627459,1732761058188,-500.0,9.997e-05,2]
[343627460,1732761058197,-500.0,9.997e-05,2]
[343627461,1732761058206,-500.0,9.997e-05,2]
[343627462,1732761058216,-500.0,9.997e-05,2]
[343627463,1732761058225,-500.0,9.997e-05,2]
[343627464,1732761058235,-500.0,9.997e-05,2]
[343627465,1732761058244,-579.37120259,9.997e-05,2]
[343627466,1732761058253,-500.0,9.997e-05,2]
[343627467,1732761058263,-500.0,9.997e-05,2]
[343627468,1732761058272,-500.0,9.997e-05,2]
[343627469,1732761058282,-500.0,9.997e-05,2]
[343627470,1732761058290,-500.0,9.997e-05,2]
[343627471,1732761058300,-500.0,9.997e-05,2]
[343627472,1732761058309,-500.0,9.997e-05,2]
[343627473,1732761058318,-500.0,9.997e-05,2]
[343627474,1732761058327,-500.0,9.997e-05,2]
[343627475,1732761058336,-500.0,9.997e-05,2]
[343627476,1732761058345,-500.0,9.997e-05,2]
[343627477,1732761058354,-500.0,9.997e-05,2]
[343627478,1732761058363,-500.0,9.997e-05,2]
[343627479,1732761058372,-500.0,9.997e-05,2]
[343627480,1732761058381,-500.0,9.997e-05,2]
[343627481,1732761058391,-500.0,9.997e-05,2]
[343627482,1732761058400,-500.0,9.997e-05,2]
[343627483,1732761058409,-500.0,9.997e-05,2]
[343627484,1732761058420,-539.00976508,9.997e-05,2]
[343627485,1732761058429,-423.75896295,9.997e-05,2]
[343627486,1732761058438,-727.27,9.997e-05,2]
[343627487,1732761058450,-727.27,9.997e-05,2]
[343627488,1732761058459,-500.0,9.997e-05,2]
[343627489,1732761058468,-500.0,9.997e-05,2]
[343627490,1732761058477,-303.70253136,9.997e-05,2]
[343627492,1732761101323,-1951.44,9.589e-05,2]
[343627493,1732761101348,-1951.44,9.726e-05,2]
[343627494,1732761101369,-257.3182453,9.8e-05,2]
[343627495,1732761101391,-150.0,9.856e-05,2]
[343627496,1732761101415,-1951.44,9.863e-05,2]
[343627497,1732761101440,-300.0,9.893e-05,2]
[343627498,1732761101463,-517.52142118,9.894e-05,2]
[343627499,1732761101486,-502.64752418,9.894e-05,2]
[343627500,1732761101510,-513.83455946,9.894e-05,2]
[343627501,1732761101534,-510.65703355,9.894e-05,2]
[343627502,1732761101557,-536.48754889,9.894e-05,2]
[343627503,1732761101578,-520.66764625,9.894e-05,2]
[343627504,1732761101600,-500.0,9.894e-05,2]
[343627505,1732761101624,-533.66685796,9.894e-05,2]
[343627506,1732761101648,-504.75895012,9.894e-05,2]
[343627507,1732761101670,-541.12659625,9.894e-05,2]
[343627508,1732761101694,-504.55441697,9.894e-05,2]
[343627509,1732761101715,-498.84648418,9.894e-05,2]
[343627510,1732761101738,-505.6037742,9.894e-05,2]
[343627511,1732761101760,-538.93021331,9.894e-05,2]
[343627512,1732761101782,-505.94089823,9.894e-05,2]
[343627513,1732761101803,-557.06414803,9.894e-05,2]
[343627514,1732761101824,-511.6445228,9.894e-05,2]
[343627515,1732761101847,-534.62830706,9.894e-05,2]
[343627516,1732761101870,-514.1971629,9.894e-05,2]
[343627517,1732761101890,-512.85925465,9.894e-05,2]
[343627518,1732761101912,-529.59717762,9.894e-05,2]
[343627519,1732761101934,-500.0,9.894e-05,2]
[343627520,1732761101956,-506.88033754,9.894e-05,2]
[343627521,1732761101978,-137264.21071157,9.894e-05,3]
[343627522,1732761102000,-865.82,9.894e-05,2]
[343627523,1732761102022,-502.95470657,9.894e-05,2]
[343627524,1732761102045,-779.78,9.894e-05,2]
[343627525,1732761102066,-500.0,9.894e-05,2]
[343627526,1732761102086,-504.75425371,9.894e-05,2]
[343627527,1732761102108,-500.0,9.894e-05,2]
[343627528,1732761102130,-507.77296399,9.894e-05,2]
[343627529,1732761102151,-507.80149357,9.894e-05,2]
[343627530,1732761102172,-514.90396284,9.894e-05,2]
[343627531,1732761102196,-528.05461983,9.894e-05,2]
[343627532,1732761102218,-525.06184307,9.894e-05,2]
[343627533,1732761102239,-500.0,9.894e-05,2]
[343627534,1732761102260,-513.2851541,9.894e-05,2]
[343627535,1732761102281,-769.87,9.894e-05,2]
[343627536,1732761102302,-1068.18,9.894e-05,2]
[343627537,1732761102322,-500.0,9.894e-05,2]
[343627538,1732761102345,-508.58501561,9.894e-05,2]
[343627539,1732761102367,-505.91810416,9.894e-05,2]
[343627540,1732761102388,-513.95259179,9.894e-05,2]
[343627541,1732761102411,-510.07140568,9.894e-05,2]
[343627542,1732761102434,-500.0,9.894e-05,2]
[343627543,1732761102456,-500.0,9.894e-05,2]
[343627544,1732761102481,-505.11019585,9.894e-05,2]
[343627545,1732761102506,-500.0,9.894e-05,2]
[343627546,1732761102531,-500.0,9.894e-05,2]
[343627547,1732761102554,-508.49349422,9.894e-05,2]
[343627548,1732761102575,-508.24175832,9.894e-05,2]
[343627549,1732761102595,-543.91319052,9.894e-05,2]
[343627550,1732761102616,-500.0,9.894e-05,2]
[343627551,1732761102640,-575.76,9.993e-05,2]
[343627552,1732761102662,-500.0,9.993e-05,2]
[343627553,1732761102683,-865.82,9.993e-05,2]
[343627554,1732761102705,-779.78,9.993e-05,2]
[343627555,1732761102726,-500.0,9.993e-05,2]
[343627556,1732761102749,-2727.69,9.993e-05,2]
[343627557,1732761102771,-470.11498065,9.993e-05,2]
[343627558,1732761102792,-500.0,9.993e-05,2]
[343627559,1732761102813,-769.87,9.993e-05,2]
[343627560,1732761102834,-1068.18,9.993e-05,2]
[343627561,1732761102854,-500.0,9.993e-05,2]
[343627562,1732761102875,-500.0,9.993e-05,2]
[343627563,1732761102896,-500.0,9.993e-05,2]
[343627564,1732761102918,-456.92783863,9.993e-05,2]
[343627565,1732761102938,-500.0,9.993e-05,2]
[343627566,1732761102960,-394.74585645,9.993e-05,2]
[343627567,1732761102981,-500.0,9.993e-05,2]
[343627568,1732761103003,-754.94,9.993e-05,2]
[343627569,1732761103023,-500.0,9.994e-05,2]
[343627570,1732761103044,-392.43,9.994e-05,2]
[343627571,1732761103064,-501.34994382,9.994e-05,2]
[343627572,1732761103085,-500.0,9.994e-05,2]
[343627573,1732761103106,-501.1293688,9.994e-05,2]
[343627574,1732761103127,-504.35713154,9.994e-05,2]
[343627575,1732761103148,-500.0,9.994e-05,2]
[343627576,1732761103168,-865.82,9.994e-05,2]
[343627577,1732761103189,-500.0,9.994e-05,2]
[343627578,1732761103215,-1259.48,9.994e-05,2]
[343627579,1732761103236,-500.0,9.994e-05,2]
[343627580,1732761103258,-2727.69,9.994e-05,2]
[343627581,1732761103279,-500.0,9.994e-05,2]
[343627582,1732761103304,-500.0,9.994e-05,2]
[343627583,1732761103326,-500.0,9.994e-05,2]
[343627584,1732761103347,-500.0,9.994e-05,2]
[343627585,1732761103368,-505.50273859,9.994e-05,2]
[343627586,1732761103389,-500.0,9.994e-05,2]
[343627587,1732761103411,-553.21756087,9.994e-05,2]
[343627588,1732761103431,-504.26321867,9.994e-05,2]
[343627589,1732761103455,-1068.18,9.994e-05,2]
[343627590,1732761103485,-500.0,9.994e-05,2]
[343627591,1732761103508,-500.0,9.994e-05,2]
[343627592,1732761103529,-500.0,9.994e-05,2]
[343627593,1732761103551,-656.07,9.994e-05,2]
[343627594,1732761103573,-656.07,9.994e-05,2]
[343627595,1732761103595,-602.92398132,9.994e-05,2]
[343627596,1732761103616,-245.82,9.994e-05,2]
[343627597,1732761103639,-500.0,9.994e-05,2]
[343627598,1732761103662,-500.0,9.994e-05,2]
[343627599,1732761103683,-500.0,9.994e-05,2]
[343627600,1732761103706,-500.0,9.994e-05,2]
[343627601,1732761103727,-500.0,9.994e-05,2]
[343627602,1732761103751,-500.0,9.994e-05,2]
[343627603,1732761103773,-754.94,9.994e-05,2]
[343627604,1732761103797,-506.15002405,9.994e-05,2]
[343627605,1732761103821,-504.78080713,9.994e-05,2]
[343627606,1732761103845,-505.25500406,9.994e-05,2]
[343627607,1732761103867,-526.62761981,9.994e-05,2]
[343627608,1732761103888,-500.0,9.995e-05,2]
[343627609,1732761103925,-500.0,9.995e-05,2]
[343627610,1732761103951,-500.0,9.995e-05,2]
[343627611,1732761103974,-865.82,9.995e-05,2]
[343627612,1732761103998,-779.78,9.995e-05,2]
[343627613,1732761104022,-779.78,9.995e-05,2]
[343627614,1732761104044,-1259.48,9.995e-05,2]
[343627615,1732761104068,-1259.48,9.995e-05,2]
[343627616,1732761104093,-507.53314927,9.995e-05,2]
[343627617,1732761104117,-2727.69,9.995e-05,2]
[343627618,1732761104142,-500.0,9.995e-05,2]
[343627619,1732761104166,-586.9799714,9.995e-05,2]
[343627620,1732761104188,-500.0,9.995e-05,2]
[343627621,1732761104212,-769.87,9.995e-05,2]
[343627622,1732761104237,-769.87,9.995e-05,2]
[343627623,1732761104259,-1068.18,9.995e-05,2]
[343627624,1732761104282,-500.0,9.995e-05,2]
[343627625,1732761104305,-500.0,9.995e-05,2]
[343627626,1732761104330,-656.07,9.995e-05,2]
[343627627,1732761104355,-500.0,9.995e-05,2]
[343627628,1732761104377,-500.0,9.995e-05,2]
[343627629,1732761104401,-500.0,9.995e-05,2]
[343627630,1732761104425,-500.0,9.995e-05,2]
[343627631,1732761104447,-500.0,9.995e-05,2]
[343627632,1732761104476,-754.94,9.995e-05,2]
[343627633,1732761104499,-500.0,9.996e-05,2]
[343627634,1732761104763,-865.82,9.996e-05,2]
[343627635,1732761104785,-779.78,9.996e-05,2]
[343627636,1732761104807,-1259.48,9.996e-05,2]
[343627637,1732761104829,-2727.69,9.996e-05,2]
[343627638,1732761104851,-368.81835934,9.996e-05,2]
[343627639,1732761104872,-500.0,9.996e-05,2]
[343627640,1732761104895,-769.87,9.996e-05,2]
[343627641,1732761104917,-1068.18,9.996e-05,2]
[343627642,1732761104939,-500.0,9.996e-05,2]
[343627643,1732761104962,-656.07,9.996e-05,2]
[343627644,1732761104985,-500.0,9.996e-05,2]
[343627645,1732761105007,-500.0,9.996e-05,2]
[343627646,1732761105029,-500.0,9.996e-05,2]
[343627647,1732761105051,-754.94,9.996e-05,2]
[343627648,1732761105073,-320.70600788,9.996e-05,2]
[343627649,1732761105094,-2000.0,9.997e-05,2]
[343627650,1732761105116,-630.0,9.997e-05,2]
[343627651,1732761105139,-150.587,9.997e-05,2]
[343627652,1732761105161,-325.58,9.997e-05,2]
[343627653,1732761105183,-1380.73,9.997e-05,2]
[343627654,1732761105208,-196.29746864,9.997e-05,2]
[343627655,1732761105231,-500.0,9.997e-05,2]
[343627656,1732761105253,-500.0,9.997e-05,2]
[343627657,1732761105275,-500.0,9.997e-05,2]
[343627658,1732761105297,-500.0,9.997e-05,2]
[343627659,1732761105319,-500.0,9.997e-05,2]
[343627660,1732761105339,-500.0,9.997e-05,2]
[343627661,1732761105360,-500.0,9.997e-05,2]
[343627662,1732761105380,-730.24,9.997e-05,2]
[343627663,1732761105403,-730.24,9.997e-05,2]
[343627664,1732761105424,-500.0,9.997e-05,2]
[343627665,1732761105446,-500.0,9.997e-05,2]
[343627666,1732761105471,-500.0,9.997e-05,2]
[343627667,1732761105497,-500.0,9.997e-05,2]
[343627668,1732761105521,-568.73,9.997e-05,2]
[343627669,1732761105545,-568.73,9.997e-05,2]
[343627670,1732761105568,-504.41,9.997e-05,2]
[343627671,1732761105590,-500.0,9.997e-05,2]
[343627672,1732761105614,-186.11182481,9.997e-05,2]
[343627673,1732761105637,-500.0,9.997e-05,2]
[343627674,1732761105659,-500.0,9.997e-05,2]
[343627675,1732761105681,-500.0,9.997e-05,2]
[343627676,1732761105704,-500.0,9.997e-05,2]
[343627677,1732761105725,-500.0,9.997e-05,2]
[343627678,1732761105748,-500.0,9.997e-05,2]
[343627679,1732761105769,-471.96507461,9.997e-05,2]
[343627680,1732761105791,-500.0,9.997e-05,2]
[343627681,1732761105813,-500.0,9.997e-05,2]
[343627682,1732761105838,-762.85,9.997e-05,2]
[343627683,1732761105861,-500.0,9.997e-05,2]
[343627684,1732761105883,-762.85,9.997e-05,2]
[343627685,1732761105905,-500.0,9.997e-05,2]
[343627686,1732761105930,-500.0,9.997e-05,2]
[343627687,1732761105952,-500.0,9.997e-05,2]
[343627688,1732761105974,-500.0,9.997e-05,2]
[343627689,1732761105995,-500.0,9.997e-05,2]
[343627690,1732761106018,-468.06930368,9.997e-05,2]
[343627691,1732761106042,-500.0,9.997e-05,2]
[343627692,1732761106064,-500.0,9.997e-05,2]
[343627693,1732761106087,-500.0,9.997e-05,2]
[343627694,1732761106110,-500.0,9.997e-05,2]
[343627695,1732761106134,-500.0,9.997e-05,2]
[343627696,1732761106156,-500.0,9.997e-05,2]
[343627697,1732761106178,-500.0,9.997e-05,2]
[343627698,1732761106205,-500.0,9.997e-05,2]
[343627699,1732761106228,-500.0,9.997e-05,2]
[343627700,1732761106251,-500.0,9.997e-05,2]
[343627701,1732761106273,-758.17,9.997e-05,2]
[343627702,1732761106294,-758.17,9.997e-05,2]
[343627703,1732761106316,-500.0,9.997e-05,2]
[343627704,1732761106339,-500.0,9.997e-05,2]
[343627705,1732761106364,-508.15193722,9.997e-05,2]
[343627706,1732761106388,-1252.6,9.997e-05,2]
[343627707,1732761106412,-1252.6,9.997e-05,2]
[343627708,1732761106435,-500.0,9.997e-05,2]
[343627709,1732761106466,-500.0,9.997e-05,2]
[343627710,1732761106491,-500.0,9.997e-05,2]
[343627711,1732761106514,-500.0,9.997e-05,2]
[343627712,1732761106538,-500.0,9.997e-05,2]
[343627713,1732761106562,-500.0,9.997e-05,2]
[343627714,1732761106586,-500.0,9.997e-05,2]
[343627715,1732761106609,-500.0,9.997e-05,2]
[343627716,1732761106633,-1558.86,9.997e-05,2]
[343627717,1732761106654,-1558.86,9.997e-05,2]
[343627718,1732761106678,-500.0,9.997e-05,2]
[343627719,1732761106705,-500.0,9.997e-05,2]
[343627720,1732761106727,-500.0,9.997e-05,2]
[343627721,1732761106749,-1505.07,9.997e-05,2]
[343627722,1732761106770,-500.0,9.997e-05,2]
[343627723,1732761106791,-500.0,9.997e-05,2]
[343627724,1732761106813,-500.0,9.997e-05,2]
[343627725,1732761106835,-500.0,9.997e-05,2]
[343627726,1732761106857,-500.0,9.997e-05,2]
[343627727,1732761106878,-500.0,9.997e-05,2]
[343627728,1732761106900,-747.18,9.997e-05,2]
[343627729,1732761106921,-500.0,9.997e-05,2]
[343627730,1732761106945,-500.0,9.997e-05,2]
[343627731,1732761106967,-500.0,9.997e-05,2]
[343627732,1732761106990,-343.99169768,9.997e-05,2]
[343627733,1732761107012,-1029.57,9.997e-05,2]
[343627734,1732761107034,-1978.92,9.997e-05,2]
[343627735,1732761107056,-500.0,9.997e-05,2]
[343627736,1732761107078,-500.0,9.997e-05,2]
[343627737,1732761107101,-500.0,9.997e-05,2]
[343627738,1732761107124,-500.0,9.997e-05,2]
[343627739,1732761107147,-1811.91,9.997e-05,2]
[343627740,1732761107170,-1404.47,9.997e-05,2]
[343627741,1732761107194,-1404.47,9.997e-05,2]
[343627742,1732761107216,-500.0,9.997e-05,2]
[343627743,1732761107238,-500.0,9.997e-05,2]
[343627744,1732761107261,-1206.62,9.997e-05,2]
[343627745,1732761107283,-1206.62,9.997e-05,2]
[343627746,1732761107307,-1211.55,9.997e-05,2]
[343627747,1732761107329,-531.2,9.997e-05,2]
[343627748,1732761107351,-531.2,9.997e-05,2]
[343627749,1732761107375,-500.0,9.997e-05,2]
[343627750,1732761107398,-500.0,9.997e-05,2]
[343627751,1732761107420,-500.0,9.997e-05,2]
[343627752,1732761107442,-500.0,9.997e-05,2]
[343627753,1732761107466,-500.0,9.997e-05,2]
[343627754,1732761107490,-500.0,9.997e-05,2]
[343627755,1732761107514,-1756.08,9.997e-05,2]
[343627756,1732761107535,-500.0,9.997e-05,2]
[343627757,1732761107557,-500.0,9.997e-05,2]
[343627758,1732761107581,-500.0,9.997e-05,2]
[343627759,1732761107604,-500.0,9.997e-05,2]
[343627760,1732761107627,-500.0,9.997e-05,2]
[343627761,1732761107648,-500.0,9.997e-05,2]
[343627762,1732761107672,-500.0,9.997e-05,2]
[343627763,1732761107696,-664.41,9.997e-05,2]
[343627764,1732761107717,-664.41,9.997e-05,2]
[343627765,1732761107739,-324.12292346,9.997e-05,2]
[343627766,1732761107761,-321.86166446,9.997e-05,2]
[343627767,1732761107783,-805.12,9.997e-05,2]
[343627768,1732761107804,-805.12,9.997e-05,2]
[343627769,1732761107825,-1559.14,9.997e-05,2]
[343627770,1732761107846,-1559.14,9.997e-05,2]
[343627771,1732761107869,-500.0,9.997e-05,2]
[343627772,1732761107890,-500.0,9.997e-05,2]
[343627773,1732761107910,-500.0,9.997e-05,2]
[343627774,1732761107932,-500.0,9.997e-05,2]
[343627775,1732761107955,-500.0,9.997e-05,2]
[343627776,1732761107976,-3389.43,9.997e-05,2]
[343627777,1732761107998,-3389.43,9.997e-05,2]
[343627778,1732761108020,-500.0,9.997e-05,2]
[343627779,1732761108041,-500.0,9.997e-05,2]
[343627780,1732761108064,-500.0,9.997e-05,2]
[343627781,1732761108086,-500.0,9.997e-05,2]
[343627782,1732761108108,-1125.87,9.997e-05,2]
[343627783,1732761108131,-500.0,9.997e-05,2]
[343627784,1732761108152,-500.0,9.997e-05,2]
[343627785,1732761108175,-500.0,9.997e-05,2]
[343627786,1732761108199,-534.63,9.997e-05,2]
[343627787,1732761108221,-534.63,9.997e-05,2]
[343627788,1732761108243,-1475.07,9.997e-05,2]
[343627789,1732761108267,-1102.99,9.997e-05,2]
[343627790,1732761108289,-500.0,9.997e-05,2]
[343627791,1732761108311,-865.82,9.997e-05,2]
[343627792,1732761108336,-779.78,9.997e-05,2]
[343627793,1732761108360,-1259.48,9.997e-05,2]
[343627794,1732761108382,-1259.48,9.997e-05,2]
[343627795,1732761108405,-2727.69,9.997e-05,2]
[343627796,1732761108428,-2727.69,9.997e-05,2]
[343627797,1732761108452,-287.82244709,9.997e-05,2]
[343627798,1732761108476,-769.87,9.997e-05,2]
[343627799,1732761108498,-1068.18,9.997e-05,2]
[343627800,1732761108521,-500.0,9.997e-05,2]
[343627801,1732761108544,-656.07,9.997e-05,2]
[343627802,1732761108566,-656.07,9.997e-05,2]
[343627803,1732761108589,-445.23538667,9.997e-05,2]
[343627804,1732761108610,-500.0,9.997e-05,2]
[343627805,1732761108632,-538.34129373,9.997e-05,2]
[343627806,1732761108654,-754.94,9.997e-05,2]
[343627807,1732761108676,-754.94,9.997e-05,2]
[343627808,1732761108701,-534.0,9.997e-05,2]
[343627809,1732761108723,-3523.0,9.997e-05,2]
[343627810,1732761108744,-978.0,9.997e-05,2]
[343627811,1732761108949,-326.104,9.997e-05,2]
[343627812,1732761108974,-5997.104,9.997e-05,2]
[343627813,1732761108998,-1096.776,9.997e-05,2]
[343627814,1732761109021,-150.0,9.997e-05,2]